bitfinex-derivatives/quotes_ETHF0:USTF0_20251012
["timestamp","ask_amount","ask_price","bid_price","bid_amount"]
[1760284983500,0.4932,4057.0,4056.7,3.2078]
[1760284983806,3.6887,4056.2,4056.1,1.2e-06]
[1760284984102,0.44365,4055.2,4054.3,3.2078]
[1760284984296,3.1955,4055.3,4055.1,3.2078]
[1760284984507,6.4033,4055.9,4055.1,3.2078]
[1760284984703,0.4932,4055.7,4055.1,3.2078]
[1760284984999,0.49632954,4055.7,4055.6,3.2078]
[1760284985309,0.00312954,4055.7,4055.6,6.4209]
[1760284986197,0.00312954,4055.7,4055.6,3.2078]
[1760284986403,0.00312954,4055.7,4055.6,6.4209]
[1760284987206,0.00312954,4055.7,4055.6,3.2078]
[1760284987700,3.69182954,4055.7,4055.6,3.2078]
[1760284988006,0.49632954,4055.7,4055.6,3.2078]
[1760284988505,3.63915,4055.2,4055.1,3.21097568]
[1760284988704,4.25668628,4055.7,4054.3,1.74434719]
[1760284988705,1.3934,4054.8,4054.3,1.74434719]
[1760284988902,3.63929,4053.9,4053.8,1.74434719]
[1760284989202,3.1955,4053.5,4053.4,3.2078]
[1760284989411,2.65136674,4053.9,4053.5,3.2131]
[1760284989608,3.1955,4054.3,4053.5,3.2131]
[1760284989909,3.63933,4053.6,4053.5,0.00289798]
[1760284990596,7.72214082,4053.6,4053.5,0.00289798]
[1760284991602,3.2078,4053.9,4053.5,0.00289798]
[1760284991800,1.10923,4054.9,4053.5,0.00289798]
[1760284991801,3.2078,4056.8,4055.4,1.0617]
[1760284992006,0.44344,4057.2,4056.5,9.26018532]
[1760284992197,0.44344,4057.2,4055.8,3.2078]
[1760284992198,3.2078,4056.8,4056.4,9.26018532]
[1760284992503,3.1955,4056.5,4056.4,9.26018532]
[1760284992901,7.32793992,4056.5,4056.4,0.00216914]
[1760284993900,7.77144992,4056.5,4056.4,0.00216914]
[1760284994106,0.44357,4056.0,4055.5,3.2078]
[1760284994303,0.44359,4055.7,4055.3,9.26018532]
[1760284994498,4.6012,4055.8,4054.4,3.2078]
[1760284994803,0.44372,4054.6,4054.4,12.46798532]
[1760284994996,3.2078,4055.0,4054.4,12.46798532]
[1760284994997,3.1955,4054.5,4054.4,12.46798532]
[1760284995202,5.78064892,4054.5,4054.4,12.47088597]
[1760284995403,3.1955,4054.5,4054.4,12.47088597]
[1760284995809,5.82856001,4054.5,4054.4,12.47088597]
[1760284996004,3.65147,4055.0,4054.4,12.47088597]
[1760284996205,3.1955,4055.8,4054.7,0.4437]
[1760284996509,3.1955,4055.8,4054.4,12.47088597]
[1760284996510,0.00283182,4056.5,4055.5,3.65581]
[1760284996717,0.00283182,4056.5,4055.4,12.46798532]
[1760284996718,0.44355,4056.2,4055.9,3.2078]
[1760284996904,0.44355,4056.2,4055.4,9.26018532]
[1760284996905,5.961268,4056.1,4055.4,9.26018532]
[1760284997105,3.1955,4056.1,4055.4,9.70380532]
[1760284997402,0.44353,4056.3,4055.9,3.2078]
[1760284997609,1.39623182,4056.5,4055.9,3.2078]
[1760284997802,3.1955,4056.1,4055.9,3.2078]
[1760284998005,2.77932505,4056.2,4055.9,3.2078]
[1760284998210,0.00283182,4056.5,4055.9,3.2078]
[1760284998211,0.00283182,4056.5,4056.1,9.26018532]
[1760284998411,3.19833182,4056.5,4056.1,9.26018532]
[1760284998810,3.19833182,4056.5,4056.1,6.11238532]
[1760284999007,3.19833182,4056.5,4056.4,6.86352]
[1760284999008,0.00283182,4056.5,4056.4,6.86352]
[1760284999610,0.00283182,4056.5,4056.4,4.96400973]
[1760284999816,0.00283182,4056.5,4056.4,3.2078]
[1760284999817,3.19833182,4056.5,4056.4,3.2078]
[1760285000120,6.72540529,4063.4,4063.3,0.44276]
[1760285000305,3.00555823,4066.0,4063.9,11.06755]
[1760285000621,1.3934,4068.0,4066.2,0.44244]
[1760285000622,8.79024225,4067.1,4066.2,0.44244]
[1760285000803,8.79024225,4067.1,4064.4,11.06615]
[1760285000804,1.3934,4067.0,4066.8,9.26018532]
[1760285001008,12.94176222,4067.0,4066.8,0.00265177]
[1760285001212,9.52944225,4066.9,4066.8,0.00265177]
[1760285001410,8.2025407,4066.9,4066.8,0.64686551]
[1760285001715,19.31406661,4066.9,4066.8,0.64686551]
[1760285002015,21.87475271,4066.9,4066.6,3.2078]
[1760285002210,3.1955,4066.6,4065.8,1.72847965]
[1760285002415,3.1955,4066.6,4065.7,3.2078]
[1760285002416,0.09233449,4065.8,4064.3,3.2078]
[1760285002714,3.2078,4066.1,4065.0,3.2078]
[1760285003013,10.346,4066.9,4066.0,3.2078]
[1760285003211,10.346,4066.9,4066.7,0.86101636]
[1760285003416,0.09233449,4066.9,4066.8,0.44238]
[1760285003610,0.00214379,4067.0,4066.8,0.44238]
[1760285004005,0.00214379,4067.0,4066.9,0.2948]
[1760285005510,3.1955,4068.5,4066.7,0.2927]
[1760285005705,3.1955,4068.5,4067.7,4.06131532]
[1760285005909,11.7854,4069.0,4068.7,0.44217]
[1760285005910,0.05,4069.0,4068.7,0.44217]
[1760285006212,3.1955,4070.2,4068.9,12.76068532]
[1760285006412,0.19270233,4071.4,4070.1,3.2078]
[1760285006614,0.022,4072.8,4071.4,9.70206532]
[1760285006804,4.5889,4072.2,4071.5,3.2078]
[1760285007003,3.1955,4071.6,4070.8,3.2078]
[1760285007204,3.1955,4072.0,4070.9,3.2078]
[1760285007407,3.1955,4072.0,4071.4,3.2078]
[1760285007611,5.84233742,4071.5,4071.4,3.2078]
[1760285007815,3.1955,4071.5,4070.9,3.2078]
[1760285008105,5.96475091,4071.5,4070.9,3.2078]
[1760285008311,5.96475091,4071.5,4071.4,3.2078]
[1760285008510,0.00268196,4072.0,4071.4,3.2078]
[1760285008712,0.00268196,4072.0,4070.7,0.0077]
[1760285008713,0.00268196,4072.0,4071.9,3.2078]
[1760285009412,0.022,4072.8,4072.6,0.44174]
[1760285009600,0.022,4072.8,4071.9,15.35812]
[1760285009601,3.1955,4074.5,4072.7,3.2078]
[1760285009806,3.1955,4074.3,4073.9,3.2078]
[1760285010006,3.1955,4073.6,4072.9,3.2078]
[1760285010208,5.97663128,4074.3,4073.5,3.2078]
[1760285010209,2.77182216,4074.3,4073.5,3.2078]
[1760285010410,2.77182216,4074.3,4071.9,1.10457]
[1760285010411,1.3934,4073.3,4072.7,3.2078]
[1760285010808,3.1955,4073.1,4072.5,3.2078]
[1760285011113,5.78326578,4073.0,4072.4,3.2078]
[1760285011310,3.1955,4072.9,4072.2,3.2078]
[1760285011504,3.1955,4072.6,4072.2,0.0029046]
[1760285011709,3.1955,4072.6,4070.3,9.26018532]
[1760285011710,1.3934,4072.2,4071.1,3.2078]
[1760285011904,1.3934,4072.2,4069.5,9.26318532]
[1760285011905,3.1955,4071.9,4071.2,3.2078]
[1760285012206,5.86772167,4071.8,4071.2,3.2078]
[1760285012413,3.1955,4071.7,4071.4,3.2078]
[1760285012720,3.3085,4071.5,4071.4,3.20970907]
[1760285012905,3.3085,4071.5,4071.4,0.00190907]
[1760285013211,5.91105426,4071.5,4071.4,3.20970907]
[1760285013415,5.91105426,4071.5,4070.3,3.2078]
[1760285013416,3.3085,4071.0,4070.3,3.2078]
[1760285013608,6.5163,4071.0,4069.9,0.44204]
[1760285013913,2.60321966,4070.9,4070.2,3.2078]
[1760285014412,3.3085,4070.8,4070.2,3.21051111]
[1760285014608,0.44206,4069.8,4067.7,3.2078]
[1760285014814,3.3085,4068.8,4067.7,3.2078]
[1760285015015,3.3085,4068.3,4067.7,3.2078]
[1760285015702,4.6244,4068.9,4068.2,3.2078]
[1760285015917,3.2078,4069.5,4068.7,3.2078]
[1760285016108,0.00261686,4070.9,4069.3,3.2078]
[1760285016109,3.3085,4070.3,4069.3,3.2078]
[1760285016415,3.3085,4070.3,4069.9,0.44205]
[1760285016711,3.3085,4070.3,4068.4,11.05529]
[1760285016712,5.90382267,4069.9,4067.6,6.3853]
[1760285016904,3.2078,4068.5,4067.6,6.3853]
[1760285017107,3.2078,4069.0,4067.9,9.26018532]
[1760285017413,3.2078,4070.4,4068.8,3.1775]
[1760285017615,3.2078,4070.4,4069.0,3.1775]
[1760285017810,2.55725741,4070.8,4070.0,0.44202]
[1760285018011,3.21041686,4070.9,4069.9,3.2078]
[1760285018210,3.21041686,4070.9,4069.8,3.61955]
[1760285018512,3.21041686,4070.9,4069.8,3.1775]
[1760285018717,3.2078,4070.4,4069.3,3.2078]
[1760285018908,3.2078,4069.9,4069.3,3.2078]
[1760285019105,2.64970059,4070.3,4069.0,3.2078]
[1760285019315,0.442,4070.3,4069.0,3.64994]
[1760285019505,0.442,4070.3,4069.0,3.2078]
[1760285019717,0.442,4070.3,4068.5,6.3853]
[1760285019718,3.2078,4069.4,4068.5,6.3853]
[1760285020213,2.78653386,4069.3,4068.5,6.3853]
[1760285020413,3.2078,4069.4,4068.6,3.1775]
[1760285020812,3.2078,4069.4,4068.9,0.44215]
[1760285021014,3.2078,4069.4,4069.3,3.1775]
[1760285021315,3.2078,4070.7,4069.3,3.2078]
[1760285021506,0.44199,4070.5,4069.7,3.2078]
[1760285021706,3.3085,4069.8,4069.2,3.2078]
[1760285022115,0.44207,4069.7,4069.2,3.2078]
[1760285022419,3.3085,4069.8,4069.2,3.2078]
[1760285022614,3.75059,4069.5,4069.2,3.2078]
[1760285022819,3.75061,4069.4,4069.2,3.2078]
[1760285023021,3.3085,4069.4,4069.2,3.2078]
[1760285023323,0.44211,4069.4,4069.2,3.2078]
[1760285023516,5.87562096,4069.3,4069.2,3.2078]
[1760285023711,5.87562096,4069.3,4067.7,0.00303913]
[1760285023712,3.64759,4068.6,4068.5,3.2078]
[1760285024221,3.2054,4068.6,4068.5,3.2078]
[1760285024619,2.70569285,4068.6,4068.5,3.2078]
[1760285024819,3.2054,4069.4,4068.5,3.2232]
[1760285025023,3.2054,4069.4,4069.0,3.2078]
[1760285025227,0.44213,4069.1,4069.0,3.2078]
[1760285025420,2.76212519,4069.3,4068.0,0.63598594]
[1760285025421,3.64764,4068.1,4068.0,0.13506594]
[1760285025723,0.4423,4067.6,4066.3,3.2078]
[1760285025927,1.10564,4068.0,4066.9,3.2232]
[1760285026115,3.2078,4068.7,4067.7,0.84900396]
[1760285026316,3.64993,4069.2,4068.0,0.84900396]
[1760285026624,3.2078,4068.7,4068.2,4.07220396]
[1760285026925,0.00299359,4069.2,4068.1,3.2078]
[1760285026926,3.21079359,4069.2,4068.3,4.07220396]
[1760285027224,2.69166981,4069.1,4068.8,0.85552059]
[1760285027425,0.44215,4069.0,4068.9,1.47812022]
[1760285027616,3.2054,4069.1,4068.9,1.47812022]
[1760285027817,0.00299359,4069.2,4069.0,0.62259963]
[1760285028023,3.65052359,4069.2,4069.1,0.62259963]
[1760285028218,6.85832359,4069.2,4069.1,3.3e-06]
[1760285028522,12.70025538,4069.2,4069.1,0.86012875]
[1760285028719,12.70025538,4069.2,4069.1,3.3e-06]
[1760285028720,6.86756175,4069.2,4069.1,3.3e-06]
[1760285029223,6.86756175,4069.2,4068.0,0.00205195]
[1760285029224,0.44219,4068.6,4068.4,1.66930476]
[1760285029419,9.01524284,4069.2,4068.4,1.73017744]
[1760285029619,0.00299359,4069.2,4068.8,4.95337744]
[1760285029824,0.00299359,4069.2,4068.6,2.08989002]
[1760285029825,3.2054,4069.0,4068.6,2.08989002]
[1760285030022,2.63928341,4069.1,4068.6,2.08989002]
[1760285030231,0.4421,4069.4,4068.4,3.2078]
[1760285030524,0.4422,4068.6,4068.4,3.2078]
[1760285030726,0.44216,4068.9,4068.5,3.051568]
[1760285030929,0.44209,4069.5,4068.5,3.051568]
[1760285031225,5.83098989,4069.4,4068.7,3.051568]
[1760285031419,5.83098989,4069.4,4069.3,2.18090303]
[1760285031619,0.00202218,4069.5,4068.9,3.051568]
[1760285031620,0.00202218,4069.5,4069.0,3.3419]
[1760285031823,3.2078,4070.3,4069.4,6.5497]
[1760285032122,2.00372,4071.4,4070.1,9.59878861]
[1760285032123,3.2078,4070.8,4070.1,9.59878861]
[1760285032329,0.44198,4070.6,4070.4,3.04908861]
[1760285032519,3.2078,4070.8,4070.4,3.04908861]
[1760285032520,3.64975,4070.8,4070.4,3.04908861]
[1760285032718,9.04359085,4070.5,4070.1,3.04908861]
[1760285032924,5.84048852,4070.5,4070.1,3.04908861]
[1760285033227,0.44202,4070.2,4069.9,3.2078]
[1760285033429,0.00229767,4070.5,4069.9,3.2078]
[1760285033625,0.00229767,4070.5,4069.1,4.36412852]
[1760285033626,0.00229767,4070.5,4070.4,6.5497]
[1760285033927,3.64967767,4070.5,4070.4,3.05357156]
[1760285034115,2.78271756,4070.5,4070.4,3.05357156]
[1760285034316,2.78271756,4070.5,4070.3,3.05357156]
[1760285034626,3.20769767,4070.5,4070.4,3.05357156]
[1760285034826,3.64967767,4070.5,4070.4,3.05357156]
[1760285035025,0.442,4070.4,4070.2,3.05357156]
[1760285035226,3.6474,4070.4,4070.2,3.05357156]
[1760285035422,3.6474,4070.4,4070.3,3.05357156]
[1760285035624,0.00229767,4070.5,4070.3,3.05357156]
[1760285035930,0.00229767,4070.5,4070.4,3.3419]
[1760285036129,0.00229767,4070.5,4070.2,7.57192852]
[1760285036330,6.4132,4070.3,4070.2,4.36412852]
[1760285036630,9.02075799,4070.3,4070.2,3.05462067]
[1760285036831,2.66985566,4070.8,4070.2,3.05462067]
[1760285037017,1.277,4071.2,4069.4,7.57192852]
[1760285037018,3.2054,4071.1,4070.5,3.05436238]
[1760285037225,0.44191,4071.1,4070.5,2.05436238]
[1760285037423,2.6676001,4071.1,4070.3,0.442]
[1760285037622,4.92431,4071.2,4070.2,3.2078]
[1760285037623,3.2078,4070.8,4070.2,3.2078]
[1760285037924,3.2078,4070.8,4070.0,4.36412852]
[1760285037925,3.2054,4070.6,4070.0,4.36412852]
[1760285038129,0.44208,4069.6,4069.4,4.36412852]
[1760285038428,9.09494479,4069.5,4068.5,6.98260564]
[1760285038729,9.09494479,4069.5,4068.4,4.36412852]
[1760285038730,0.44211,4069.3,4068.4,4.36412852]
[1760285038926,3.2054,4068.5,4068.4,4.36412852]
[1760285039122,3.64999,4068.6,4068.0,0.00205195]
[1760285039123,0.44224,4068.1,4068.0,0.00205195]
[1760285039336,3.2054,4068.1,4068.0,0.00205195]
[1760285039629,9.04709596,4068.1,4068.0,2.1845428]
[1760285039829,3.2054,4068.1,4068.0,2.1845428]
[1760285040031,3.2078,4068.4,4068.0,0.00205195]
[1760285040220,3.2078,4068.4,4066.8,6.98260564]
[1760285040221,1.10567,4067.9,4066.8,6.98260564]
[1760285040420,3.2054,4067.1,4065.9,3.2078]
[1760285040728,3.2054,4066.5,4065.9,3.2078]
[1760285040927,0.44246,4066.1,4065.9,3.2078]
[1760285041137,6.4132,4066.0,4065.9,2.18856492]
[1760285041325,0.44251,4065.7,4065.4,2.18128884]
[1760285041521,0.44248,4065.9,4065.4,2.18128884]
[1760285041729,5.7427311,4065.6,4065.0,3.2078]
[1760285041929,3.20721315,4066.1,4065.0,3.2078]
[1760285041930,5.87458303,4065.8,4065.0,3.2078]
[1760285042137,3.2054,4065.7,4065.0,3.2078]
[1760285042430,3.3715,4065.3,4065.0,3.21080183]
[1760285042728,2.80101229,4065.2,4065.0,3.21080183]
[1760285042920,3.3715,4065.1,4065.0,3.21080183]
[1760285043126,3.3715,4065.1,4065.0,1.30867535]
[1760285043127,6.5793,4065.1,4065.0,1.30867535]
[1760285043323,0.44262,4064.7,4063.7,3.2078]
[1760285043631,1.2994,4065.3,4063.7,3.2078]
[1760285043632,3.3715,4064.5,4063.7,3.2078]
[1760285043822,3.3715,4064.3,4063.7,3.2078]
[1760285044235,2.61864095,4064.2,4063.7,3.2078]
[1760285044529,3.3715,4063.8,4063.7,3.21080059]
[1760285044832,6.04949635,4063.8,4063.7,0.00300059]
[1760285045026,0.44281,4062.9,4062.4,3.2078]
[1760285045226,3.3715,4062.2,4061.8,3.2078]
[1760285045435,3.3715,4062.2,4061.3,3.3242]
[1760285045436,3.2078,4062.1,4061.2,3.2078]
[1760285045737,6.36846398,4062.1,4061.2,3.2078]
[1760285046031,2.57728366,4062.0,4061.2,3.20963577]
[1760285046536,3.23861587,4061.9,4061.2,3.20963577]
[1760285046734,3.68153587,4061.9,4061.2,3.20963577]
[1760285047036,3.3715,4063.5,4061.8,3.2078]
[1760285047334,3.81413,4064.6,4063.5,3.3242]
[1760285047527,3.2078,4064.4,4063.4,3.2078]
[1760285047733,2.80130877,4064.3,4063.4,6.532]
[1760285047929,1.58403117,4064.5,4063.4,6.532]
[1760285048134,3.3715,4063.7,4062.8,3.2078]
[1760285048335,3.3715,4063.4,4062.8,3.2078]
[1760285048523,3.81429,4063.1,4062.8,3.2078]
[1760285048724,3.81431,4062.9,4062.1,3.2078]
[1760285048934,0.44285,4062.6,4062.1,3.2078]
[1760285049126,5.8335922,4063.0,4062.1,3.2078]
[1760285049127,0.44288,4062.3,4062.1,3.2078]
[1760285049328,0.44291,4062.0,4061.4,3.2078]
[1760285049635,9.17497782,4062.2,4061.4,3.2078]
[1760285049824,5.9972922,4062.2,4061.4,3.2078]
[1760285050026,0.44292,4061.9,4061.4,3.2078]
[1760285050233,3.3715,4061.3,4061.2,0.00183577]
[1760285050438,3.3715,4061.3,4059.8,3.2078]
[1760285050439,0.44311,4060.2,4059.8,3.2078]
[1760285050737,4.6709,4059.9,4058.2,3.3242]
[1760285050925,13.5298,4060.5,4058.7,3.3242]
[1760285050926,3.2078,4059.5,4058.7,3.3242]
[1760285051247,3.2078,4060.4,4060.2,0.44309]
[1760285051537,10.322,4060.5,4060.1,3.3242]
[1760285051730,3.2078,4060.2,4059.5,3.2078]
[1760285051934,0.44313,4059.9,4059.5,3.2078]
[1760285052142,0.44316,4059.7,4059.5,3.2078]
[1760285052435,0.44316,4059.7,4058.7,0.00205015]
[1760285052436,3.22541584,4059.6,4058.7,0.00205015]
[1760285052634,0.44322,4059.1,4058.7,0.00205015]
[1760285052832,2.79243324,4059.6,4059.1,3.3242]
[1760285053040,11.06939,4063.3,4060.5,3.3242]
[1760285053041,3.3715,4061.7,4060.5,3.3242]
[1760285053244,3.2078,4060.8,4060.5,3.3242]
[1760285053539,3.2078,4060.8,4059.9,6.532]
[1760285053737,2.72931728,4060.7,4059.9,3.2078]
[1760285053936,2.72931728,4060.7,4060.0,3.3242]
[1760285054134,1.5825809,4061.1,4060.9,3.3242]
[1760285054338,3.3715,4063.0,4062.6,0.44283]
[1760285054536,0.00178625,4063.0,4062.6,0.00258532]
[1760285054731,2.58753149,4062.9,4062.6,0.00258532]
[1760285054933,0.00178625,4063.0,4062.6,0.00258532]
[1760285055136,0.00178625,4063.0,4061.6,3.2078]
[1760285055137,0.44286,4062.5,4061.6,3.2078]
[1760285055356,1.2994,4062.6,4060.1,1.72666019]
[1760285055357,0.44293,4061.8,4061.0,3.2078]
[1760285055643,4.6709,4061.7,4061.1,0.443]
[1760285055840,1.74234,4061.7,4061.0,3.2078]
[1760285056046,5.11384,4061.7,4061.0,3.21061503]
[1760285056640,3.2078,4062.7,4062.0,0.4429]
[1760285056840,3.2078,4064.8,4062.9,0.44281]
[1760285057037,3.2078,4064.8,4062.9,3.2078]
[1760285057345,4.6709,4064.0,4063.9,3.2078]
[1760285057648,3.2078,4064.8,4063.9,3.2078]
[1760285057649,3.3715,4064.6,4063.9,3.2078]
[1760285057833,3.3715,4064.6,4061.9,11.07296]
[1760285057834,3.2078,4064.3,4063.4,3.2078]
[1760285058039,3.3715,4064.2,4063.4,3.21023865]
[1760285058435,0.00240216,4064.3,4064.2,0.44266]
[1760285058649,3.2078,4065.4,4063.9,3.2078]
[1760285058650,3.3715,4065.8,4064.0,1.10672]
[1760285058944,3.3715,4065.8,4065.1,0.44257]
[1760285059237,3.3715,4065.8,4065.0,3.2078]
[1760285059238,3.3715,4065.8,4065.0,3.65038]
[1760285059644,3.3715,4065.8,4065.0,3.2078]
[1760285059645,3.37326432,4065.8,4065.0,3.2078]
[1760285060035,3.37326432,4065.8,4065.0,3.65037]
[1760285060251,3.2078,4066.7,4066.1,0.44245]
[1760285060436,10.328,4068.1,4066.1,3.2078]
[1760285060437,3.3715,4067.5,4066.1,3.2078]
[1760285060643,3.3715,4066.5,4066.1,3.2078]
[1760285060948,3.3715,4066.4,4065.5,3.2078]
[1760285061136,0.44251,4065.7,4065.5,3.2078]
[1760285061338,3.3715,4065.6,4065.5,3.2078]
[1760285062043,6.13240109,4065.6,4065.5,3.2078]
[1760285062246,4.47785,4065.4,4063.8,0.85940379]
[1760285062541,4.47785,4065.4,4063.6,3.2078]
[1760285062542,0.44264,4064.4,4063.6,3.2078]
[1760285062742,3.2078,4064.5,4064.4,0.44264]
[1760285062944,3.3715,4065.3,4064.5,0.44262]
[1760285063144,3.3715,4065.3,4063.8,0.85940379]
[1760285063333,1.10621,4065.9,4063.8,0.85940379]
[1760285063334,5.9911576,4064.5,4064.0,0.44269]
[1760285063534,3.3715,4064.5,4063.7,3.2078]
[1760285063742,3.3715,4064.5,4064.0,0.44268]
[1760285063942,3.3715,4064.5,4064.1,0.44267]
[1760285064139,3.2078,4064.6,4064.4,0.44263]
[1760285064347,3.2078,4064.6,4064.2,0.85940379]
[1760285064543,3.3715,4064.5,4064.2,0.85940379]
[1760285064839,0.44266,4064.3,4063.7,4.06720379]
[1760285065246,0.44266,4064.3,4063.9,0.85940379]
[1760285065446,3.2078,4064.4,4063.9,0.85940379]
[1760285065641,3.3715,4065.5,4064.9,0.44259]
[1760285065844,3.2078,4065.7,4064.9,0.85940379]
[1760285066043,6.5793,4065.2,4064.7,0.85940379]
[1760285066349,6.5793,4065.2,4064.3,3.2078]
[1760285066350,0.44261,4064.7,4064.5,0.85940379]
[1760285066549,3.3715,4064.4,4064.1,0.85940379]
[1760285066847,3.3715,4064.4,4063.4,0.86184244]
[1760285066848,5.11364,4063.5,4063.4,0.86184244]
[1760285067056,5.11364,4063.5,4062.2,2.60348707]
[1760285067057,3.3715,4063.2,4063.1,0.85940379]
[1760285067238,4.50897103,4063.5,4061.9,3.2078]
[1760285067239,7.53538772,4063.5,4063.0,1.30465115]
[1760285067438,7.53538772,4063.5,4062.7,0.44282]
[1760285067439,0.00177103,4063.5,4063.4,1.30465115]
[1760285067638,0.00177103,4063.5,4063.0,1.72666019]
[1760285067943,0.00177103,4063.5,4063.3,1.72666019]
[1760285068146,0.00177103,4063.5,4063.1,0.44278]
[1760285068346,0.00177103,4063.5,4063.0,2.16378376]
[1760285068546,0.44278,4063.2,4063.0,2.16378376]
[1760285068738,6.5793,4063.1,4063.0,0.00317669]
[1760285068943,9.13952192,4063.1,4063.0,0.00317669]
[1760285069848,5.11374,4062.6,4062.4,1.30773182]
[1760285070152,5.11374,4062.6,4062.0,1.30773182]
[1760285070153,3.3715,4062.1,4062.0,1.30773182]
[1760285070350,0.44293,4061.8,4061.7,1.30773182]
[1760285070542,3.3715,4061.7,4061.6,1.30773182]
[1760285070938,3.3715,4061.7,4061.6,1.30981122]
[1760285071146,3.2078,4062.0,4061.6,0.0020794]
[1760285071351,3.3715,4062.4,4061.8,1.31038464]
[1760285071647,1.2994,4062.6,4062.1,1.31019159]
[1760285071648,3.65068,4062.3,4062.1,1.31019159]
[1760285071949,3.81442,4061.9,4061.8,1.31019159]
[1760285072148,0.44293,4061.8,4061.6,0.0020794]
[1760285072447,3.2078,4061.7,4061.6,0.0020794]
[1760285072645,3.2078,4061.7,4060.9,1.74364243]
[1760285072646,0.44299,4061.3,4061.2,1.31064293]
[1760285072952,3.4947,4061.3,4061.2,1.31064293]
[1760285073450,4.4847,4061.7,4061.2,1.31077465]
[1760285073651,3.4947,4061.6,4061.2,1.31325522]
[1760285073944,3.2078,4062.5,4062.4,0.44286]
[1760285074149,0.00177103,4063.5,4062.1,3.2078]
[1760285074341,0.00177103,4063.5,4063.2,1.31077465]
[1760285074542,0.00177103,4063.5,4063.4,1.31077465]
[1760285075045,0.00177103,4063.5,4063.3,0.44276]
[1760285075253,0.00177103,4063.5,4063.4,3.2078]
[1760285075446,0.00177103,4063.5,4063.3,2.18916681]
[1760285075640,3.2078,4064.4,4064.3,0.44265]
[1760285075955,3.2078,4065.2,4065.1,0.44256]
[1760285076137,6.7025,4065.2,4065.1,0.44256]
[1760285076345,3.4947,4065.2,4065.1,0.44256]
[1760285076540,3.4947,4065.2,4064.9,1.30958556]
[1760285076745,6.7025,4065.0,4064.9,0.00183946]
[1760285077156,9.54700216,4065.0,4064.9,0.00183946]
[1760285077749,5.19122065,4065.0,4064.9,0.44442946]
[1760285078041,3.4947,4066.7,4066.4,0.44242]
[1760285078246,3.4947,4067.2,4066.9,0.44236]
[1760285078446,3.4947,4067.0,4066.5,1.3085456]
[1760285078640,2.6434774,4067.0,4066.5,0.44241]
[1760285078844,2.6434774,4067.0,4066.8,0.44238]
[1760285078845,3.4947,4066.9,4066.8,0.44238]
[1760285079042,0.00198417,4067.0,4066.8,3.65018]
[1760285080548,3.4947,4068.4,4066.8,3.65018]
[1760285080549,3.4947,4068.4,4067.8,0.44226]
[1760285080756,3.2078,4068.5,4068.3,0.44221]
[1760285080955,3.2078,4068.5,4068.3,1.7472526]
[1760285081646,3.20964703,4068.5,4068.3,1.75019888]
[1760285081852,6.70434703,4068.5,4068.3,0.00294628]
[1760285082048,6.70434703,4068.5,4067.9,1.3050426]
[1760285082049,3.4947,4068.3,4067.9,1.3050426]
[1760285082356,3.4947,4068.4,4067.7,3.65008]
[1760285082551,3.2078,4068.2,4067.7,3.2078]
[1760285082850,3.4947,4068.4,4067.8,0.44227]
[1760285083054,3.4947,4068.4,4067.8,0.00243172]
[1760285083257,3.3019,4067.9,4067.8,0.00243172]
[1760285083647,0.44231,4067.5,4067.1,3.2078]
[1760285083846,1.2624,4067.1,4066.7,1.3050426]
[1760285084044,1.2624,4067.1,4066.6,3.2078]
[1760285084357,3.3019,4066.9,4066.6,3.2078]
[1760285084553,3.3019,4066.9,4066.6,3.20977323]
[1760285084763,0.44243,4066.4,4065.9,1.3050426]
[1760285085050,3.3019,4066.0,4065.7,1.3050426]
[1760285085446,1.94955163,4066.3,4065.9,4.5128426]
[1760285085644,3.3019,4066.7,4066.1,1.3050426]
[1760285085850,4.5643,4066.2,4066.1,0.00228721]
[1760285086051,7.7721,4066.2,4066.1,0.00228721]
[1760285086444,3.2078,4067.0,4066.1,1.30732981]
[1760285086748,3.2078,4067.5,4066.6,3.2078]
[1760285086950,3.2078,4067.0,4066.9,1.30678866]
[1760285087150,3.2078,4067.0,4066.6,0.4424]
[1760285087151,2.76938277,4067.4,4066.6,3.2078]
[1760285087353,3.3019,4067.8,4067.6,0.44229]
[1760285087549,0.899,4067.8,4067.6,3.65009]
[1760285087749,0.899,4067.8,4067.6,0.44229]
[1760285087949,6.5097,4068.4,4067.3,1.74472747]
[1760285087950,3.3019,4068.2,4067.3,1.74472747]
[1760285088152,3.2078,4067.4,4067.3,1.30613396]
[1760285088445,3.3019,4067.3,4067.1,0.44234]
[1760285088652,7.11756857,4068.3,4067.2,3.2078]
[1760285088653,0.899,4068.3,4067.2,3.2078]
[1760285088854,0.899,4068.4,4068.1,0.0043]
[1760285089053,3.2078,4069.2,4069.1,0.44213]
[1760285089250,1.2624,4069.8,4069.0,3.2078]
[1760285089454,1.2624,4069.8,4069.6,0.44207]
[1760285089652,1.2624,4069.8,4069.0,3.2078]
[1760285089653,3.2078,4070.2,4069.8,0.44205]
[1760285089849,3.2078,4070.2,4069.5,3.2078]
[1760285089850,3.3019,4069.6,4069.5,0.44208]
[1760285090047,2.71958298,4069.7,4069.5,4.95817779]
[1760285090258,3.20967604,4070.2,4070.0,0.44203]
[1760285091152,0.00187604,4070.2,4069.8,0.44206]
[1760285091456,0.00187604,4070.2,4070.1,0.44202]
[1760285091655,10.32,4071.5,4070.2,0.44201]
[1760285091656,13.5278,4071.5,4070.2,0.44201]
[1760285091960,3.3019,4071.4,4070.9,0.44193]
[1760285092161,3.3019,4071.3,4070.6,3.2078]
[1760285092553,2.61885003,4071.2,4070.6,3.2078]
[1760285092749,0.0029245,4071.2,4070.6,3.2078]
[1760285092955,3.3019,4070.6,4069.5,3.21080932]
[1760285093260,2.66963815,4071.2,4071.0,0.44193]
[1760285093473,3.3019,4072.2,4071.7,0.44185]
[1760285093764,3.2298,4072.8,4072.5,0.44176]
[1760285093963,3.3019,4072.7,4071.9,3.2078]
[1760285094159,2.58410804,4072.7,4072.4,0.44176]
[1760285094365,3.3019,4072.6,4072.4,0.00184829]
[1760285094664,0.00250704,4072.7,4072.4,0.00184829]